[Event "LJ Slovak Open 2022"]
[Site "Liptovsky Jan"]
[Date "2022.06.26"]
[Round "6.45"]
[White "Pavlov Jakub"]
[Black "Gay, Lukas"]
[Result "0-1"]
[ECO "B01"]
[WhiteElo "1000"]
[BlackElo "1480"]
[Annotator "NA RC"]
[PlyCount "76"]
[EventDate "2022.06.23"]
[EventType "swiss"]
[EventCountry "SVK"]
[SourceTitle "playchess.com"]
[Source "ChessBase"]
[SourceQuality "1"]
[TimeControl "3600+30"]

1. e4 {[%emt 0:00:05]} d5 {[%emt 0:00:17]} 2. exd5 {[%emt 0:00:13]} Nf6 {[%emt 0:00:10]} 3. Nf3 {[%emt 0:00:52]} Nxd5 {[%emt 0:00:57]} 4. d4 {[%emt 0:00:13]} e6 {[%emt 0:00:17]} 5. Bc4 {[%emt 0:01:00]} Nc6 {[%emt 0:00:37]} 6. O-O {[%emt 0:01:07]} Be7 {[%emt 0:00:43]} 7. Re1 {[%emt 0:00:19]} O-O {[%emt 0:00:32]} 8. a3 {[%emt 0:01:29]} b6 {[%emt 0:01:10]} 9. Qe2 {[%emt 0:01:38]} Bf6 {[%emt 0:01:42]} 10. c3 {[%emt 0:01:23]} Bb7 {[%emt 0:01:42]} 11. b4 {[%emt 0:00:21]} Re8 {[%emt 0:03:30]} 12. a4 {[%emt 0:05:43]} a5 {[%emt 0:03:13]} 13. Bb5 {[%emt 0:05:42]} axb4 {[%emt 0:01:36]} 14. c4 {[%emt 0:00:09]} Nxd4 {[%emt 0:02:08]} 15. Nxd4 {[%emt 0:00:31]} Bxd4 {[%emt 0:00:06]} 16. cxd5 {[%emt 0:00:23]} Bxa1 {[%emt 0:00:09]} 17. Bxe8 {[%emt 0:00:31]} Qxe8 {[%emt 0:00:36]} 18. dxe6 {[%emt 0:00:51]} fxe6 {[%emt 0:00:12]} 19. Qxe6+ {[%emt 0:01:54]} Qxe6 {[%emt 0:00:28]} 20. Rxe6 {[%emt 0:00:06]} Rd8 {[%emt 0:00:28]} 21. Re1 {[%emt 0:00:36]} Bc3 {[%emt 0:00:06]} 22. Nxc3 {[%emt 0:00:13]} bxc3 {[%emt 0:00:03]} 23. f3 {[%emt 0:02:03]} c2 {[%emt 0:00:11]} 24. Kf2 {[%emt 0:00:13]} Bc6 {[%emt 0:00:48]} 25. Re7 {[%emt 0:01:53]} Rd7 {[%emt 0:00:32]} 26. Rxd7 {[%emt 0:01:47]} Bxd7 {[%emt 0:00:03]} 27. a5 {[%emt 0:00:40]} bxa5 {[%emt 0:00:32]} 28. Ke3 {[%emt 0:00:09]} Kf7 {[%emt 0:00:19]} 29. h4 {[%emt 0:02:47]} Ke6 {[%emt 0:00:13]} 30. Kf4 {[%emt 0:00:26]} Kd5 {[%emt 0:00:15]} 31. Ke3 {[%emt 0:00:46]} Kc4 {[%emt 0:00:08]} 32. g4 {[%emt 0:00:12]} Kb3 {[%emt 0:00:10]} 33. Kd3 {[%emt 0:01:11]} c5 {[%emt 0:00:05]} 34. h5 {[%emt 0:01:09]} c4+ {[%emt 0:00:07]} 35. Kd2 {[%emt 0:00:07]} c3+ {[%emt 0:00:17]} 36. Kd3 {[%emt 0:00:11]} a4 {[%emt 0:01:03]} 37. g5 {[%emt 0:00:06]} Bf5+ {[%emt 0:00:18]} 38. Kd4 {[%emt 0:00:14]} a3 {[%emt 0:00:06]} 0-1

[Event "LJ Slovak Open 2022"]
[Site "Liptovsky Jan"]
[Date "2022.06.26"]
[Round "6.46"]
[White "Veres Alex"]
[Black "Janouskova, Adela"]
[Result "0-1"]
[ECO "B33"]
[WhiteElo "1000"]
[BlackElo "1498"]
[Annotator "NA RC"]
[PlyCount "37"]
[EventDate "2022.06.23"]
[EventType "swiss"]
[EventCountry "SVK"]
[SourceTitle "playchess.com"]
[Source "ChessBase"]
[SourceQuality "1"]
[TimeControl "3600+30"]

1. e4 {[%emt 0:00:09]} c5 {[%emt 0:00:30]} 2. Nf3 {[%emt 0:00:31]} Nc6 {[%emt 0:00:09]} 3. d4 {[%emt 0:00:06]} cxd4 {[%emt 0:00:14]} 4. Nxd4 {[%emt 0:00:05]} Nf6 {[%emt 0:00:07]} 5. Nc3 {[%emt 0:00:04]} e5 {[%emt 0:00:14]} 6. Nf3 {[%emt 0:00:08]} Bb4 {[%emt 0:00:17]} 7. Bd2 {[%emt 0:00:25]} d6 {[%emt 0:00:17]} 8. Bc4 {[%emt 0:01:53]} O-O {[%emt 0:00:12]} 9. O-O {[%emt 0:00:37]} Bxc3 {[%emt 0:00:30]} 10. Bxc3 {[%emt 0:01:16]} Nxe4 {[%emt 0:00:11]} 11. Qd3 {[%emt 0:00:29]} Nxc3 {[%emt 0:00:31]} 12. bxc3 {[%emt 0:00:42]} Qf6 {[%emt 0:00:16]} 13. Qe4 {[%emt 0:01:39]} Bf5 {[%emt 0:03:51]} 14. Qh4 {[%emt 0:01:47]} Qxh4 {[%emt 0:01:18]} 15. Nxh4 {[%emt 0:02:13]} Be4 {[%emt 0:00:01]} 16. Rac1 {[%emt 0:01:40]} d5 {[%emt 0:00:30]} 17. Bb3 {[%emt 0:04:04]} Rad8 {[%emt 0:00:45]} 18. Nf5 {[%emt 0:02:41]} g5 {[%emt 0:01:15]} 19. Rfe1 {[%emt 0:00:06]} 0-1

[Event "LJ Slovak Open 2022"]
[Site "Liptovsky Jan"]
[Date "2022.06.26"]
[Round "6.47"]
[White "Bilik, Matej"]
[Black "Freibergs, Filips"]
[Result "0-1"]
[ECO "C50"]
[WhiteElo "1553"]
[BlackElo "1250"]
[Annotator "NA RC"]
[PlyCount "78"]
[EventDate "2022.06.23"]
[EventType "swiss"]
[EventCountry "SVK"]
[SourceTitle "playchess.com"]
[Source "ChessBase"]
[SourceQuality "1"]
[TimeControl "3600+30"]

1. e4 {[%emt 0:00:02]} e5 {[%emt 0:00:07]} 2. Nf3 {[%emt 0:00:13]} Nc6 {[%emt 0:00:03]} 3. Bc4 {[%emt 0:00:47]} Bc5 {[%emt 0:00:51]} 4. O-O {[%emt 0:00:25]} Nf6 {[%emt 0:00:24]} 5. d3 {[%emt 0:00:24]} O-O {[%emt 0:00:38]} 6. h3 {[%emt 0:03:27]} h6 {[%emt 0:01:56]} 7. Re1 {[%emt 0:01:20]} d6 {[%emt 0:00:44]} 8. a4 {[%emt 0:00:14]} a5 {[%emt 0:00:34]} 9. Nbd2 {[%emt 0:02:59]} Be6 {[%emt 0:01:26]} 10. Bb3 {[%emt 0:04:00]} Qd7 {[%emt 0:01:22]} 11. Bxe6 {[%emt 0:04:59]} fxe6 {[%emt 0:00:54]} 12. c4 {[%emt 0:02:39]} Bb6 {[%emt 0:03:43]} 13. Nf1 {[%emt 0:06:34]} Nd4 {[%emt 0:01:39]} 14. Be3 {[%emt 0:09:33]} Nxf3+ {[%emt 0:06:08]} 15. Qxf3 {[%emt 0:01:11]} Nd5 {[%emt 0:01:23]} 16. Qe2 {[%emt 0:02:34]} Nxe3 {[%emt 0:02:32]} 17. Nxe3 {[%emt 0:01:10]} Qf7 {[%emt 0:00:04]} 18. Rf1 {[%emt 0:01:48]} Qf4 {[%emt 0:02:47]} 19. Rac1 {[%emt 0:07:06]} Rf7 {[%emt 0:05:53]} 20. Rce1 {[%emt 0:04:02]} Raf8 {[%emt 0:05:49]} 21. f3 {[%emt 0:00:48]} g5 {[%emt 0:03:57]} 22. Kh1 {[%emt 0:09:45]} h5 {[%emt 0:01:14]} 23. Rg1 {[%emt 0:03:58]} Kh8 {[%emt 0:02:10]} 24. Ref1 {[%emt 0:01:45]} Qxe3 {[%emt 0:00:11]} 25. Re1 {[%emt 0:00:36]} Qxe2 {[%emt 0:00:10]} 26. Rxe2 {[%emt 0:00:06]} Bxg1 {[%emt 0:00:03]} 27. Kxg1 {[%emt 0:00:10]} Kh7 {[%emt 0:00:27]} 28. Kf2 {[%emt 0:00:21]} g4 {[%emt 0:00:07]} 29. hxg4 {[%emt 0:00:23]} hxg4 {[%emt 0:00:02]} 30. Re3 {[%emt 0:00:14]} gxf3 {[%emt 0:00:14]} 31. gxf3 {[%emt 0:00:09]} Rg8 {[%emt 0:00:06]} 32. Re1 {[%emt 0:00:23]} Rfg7 {[%emt 0:00:21]} 33. Rh1+ {[%emt 0:00:15]} Kg6 {[%emt 0:00:01]} 34. Rg1+ {[%emt 0:00:27]} Kf7 {[%emt 0:00:04]} 35. Rxg7+ {[%emt 0:00:23]} Rxg7 {[%emt 0:00:02]} 36. Kf1 {[%emt 0:00:20]} Kf6 {[%emt 0:00:09]} 37. Kf2 {[%emt 0:00:12]} Kg5 {[%emt 0:00:04]} 38. Kf1 {[%emt 0:00:04]} Kf4 {[%emt 0:00:07]} 39. Kf2 {[%emt 0:00:19]} Rg3 {[%emt 0:00:11]} 0-1

[Event "LJ Slovak Open 2022"]
[Site "Liptovsky Jan"]
[Date "2022.06.26"]
[Round "6.49"]
[White "Muller, Martin"]
[Black "Kolibik, Jan"]
[Result "0-1"]
[ECO "D02"]
[WhiteElo "1476"]
[BlackElo "1621"]
[Annotator "NA RC"]
[PlyCount "97"]
[EventDate "2022.06.23"]
[EventType "swiss"]
[EventCountry "SVK"]
[SourceTitle "playchess.com"]
[Source "ChessBase"]
[SourceQuality "1"]
[TimeControl "3600+30"]

1. d4 {[%emt 0:00:07]} d5 {[%emt 0:00:08]} 2. Bf4 {[%emt 0:00:19]} c6 {[%emt 0:00:40]} 3. Nf3 {[%emt 0:00:15]} Nf6 {[%emt 0:00:34]} 4. e3 {[%emt 0:01:10]} Bg4 {[%emt 0:00:58]} 5. h3 {[%emt 0:02:14]} Bh5 {[%emt 0:02:08]} 6. Bd3 {[%emt 0:00:14]} Qb6 {[%emt 0:06:44]} 7. Nbd2 {[%emt 0:20:29]} e6 {[%emt 0:12:26]} 8. Nb3 {[%emt 0:28:02]} Nbd7 {[%emt 0:40:52]} 9. Qd2 {[%emt 0:12:10]} Ne4 {[%emt 0:00:30]} 10. Bxe4 {[%emt 0:00:30]} dxe4 {[%emt 0:00:30]} 11. Ne5 {[%emt 0:00:30]} Nxe5 {[%emt 0:00:30]} 12. Bxe5 {[%emt 0:00:30]} f6 {[%emt 0:00:30]} 13. Bh2 {[%emt 0:00:30]} a5 {[%emt 0:00:30]} 14. c3 {[%emt 0:00:30]} Rd8 {[%emt 0:00:30]} 15. Qc2 {[%emt 0:00:30]} Bg6 {[%emt 0:00:30]} 16. Qe2 {[%emt 0:00:30]} a4 {[%emt 0:00:30]} 17. Nc1 {[%emt 0:00:30]} Bf7 {[%emt 0:00:30]} 18. Qc2 {[%emt 0:00:30]} f5 {[%emt 0:00:30]} 19. Be5 {[%emt 0:00:30]} Qa6 {[%emt 0:00:30]} 20. h4 {[%emt 0:00:30]} Be7 {[%emt 0:00:30]} 21. h5 {[%emt 0:00:30]} Bf6 {[%emt 0:00:30]} 22. Bxf6 {[%emt 0:00:30]} gxf6 {[%emt 0:00:30]} 23. Qe2 {[%emt 0:00:30]} Qxe2+ {[%emt 0:00:30]} 24. Nxe2 {[%emt 0:00:30]} Rg8 {[%emt 0:00:30]} 25. g3 {[%emt 0:00:30]} Ke7 {[%emt 0:00:30]} 26. O-O-O {[%emt 0:00:30]} e5 {[%emt 0:00:30]} 27. Kb1 {[%emt 0:00:30]} Rd7 {[%emt 0:00:30]} 28. dxe5 {[%emt 0:00:30]} Rxd1+ {[%emt 0:00:30]} 29. Rxd1 {[%emt 0:00:30]} fxe5 {[%emt 0:00:30]} 30. h6 {[%emt 0:00:30]} Bh5 {[%emt 0:00:30]} 31. Re1 {[%emt 0:00:30]} Bxe2 {[%emt 0:00:30]} 32. Rxe2 {[%emt 0:00:30]} Rg6 {[%emt 0:00:30]} 33. c4 {[%emt 0:00:30]} Rd6 {[%emt 0:00:30]} 34. Kc2 {[%emt 0:00:30]} Rxh6 {[%emt 0:00:30]} 35. Kc3 {[%emt 0:00:30]} c5 {[%emt 0:00:30]} 36. b4 {[%emt 0:00:30]} b6 {[%emt 0:00:30]} 37. b5 {[%emt 0:00:30]} Rd6 {[%emt 0:00:30]} 38. Rd2 {[%emt 0:00:30]} h5 {[%emt 0:00:30]} 39. Rxd6 {[%emt 0:00:30]} Kxd6 {[%emt 0:00:30]} 40. Kd2 {[%emt 0:00:30]} Ke6 {[%emt 0:00:30]} 41. Ke2 {[%emt 0:00:30]} Kf6 {[%emt 0:00:30]} 42. Kf1 {[%emt 0:00:30]} Kg5 {[%emt 0:00:30]} 43. Kg2 {[%emt 0:00:30]} f4 {[%emt 0:00:30]} 44. Kh3 {[%emt 0:00:30]} a3 {[%emt 0:00:30]} 45. Kh2 {[%emt 0:00:30]} Kg4 {[%emt 0:00:30]} 46. Kg2 {[%emt 0:00:30]} fxg3 {[%emt 0:00:30]} 47. fxg3 {[%emt 0:00:30]} h4 {[%emt 0:00:30]} 48. gxh4 {[%emt 0:00:30]} Kxh4 {[%emt 0:00:30]} 49. Kh2 {[%emt 0:00:30]} 0-1

[Event "LJ Slovak Open 2022"]
[Site "Liptovsky Jan"]
[Date "2022.06.26"]
[Round "6.50"]
[White "Szabo, Marian"]
[Black "Carnecky, Michal"]
[Result "1-0"]
[ECO "A45"]
[WhiteElo "1467"]
[BlackElo "1361"]
[Annotator "NA RC"]
[PlyCount "101"]
[EventDate "2022.06.23"]
[EventType "swiss"]
[EventCountry "SVK"]
[SourceTitle "playchess.com"]
[Source "ChessBase"]
[SourceQuality "1"]
[TimeControl "3600+30"]

1. d4 {[%emt 0:00:03]} d5 {[%emt 0:00:09]} 2. e3 {[%emt 0:00:08]} Nf6 {[%emt 0:00:16]} 3. Nd2 {[%emt 0:00:21]} e6 {[%emt 0:00:36]} 4. a3 {[%emt 0:00:09]} Bd6 {[%emt 0:01:09]} 5. c4 {[%emt 0:00:26]} c5 {[%emt 0:01:41]} 6. dxc5 {[%emt 0:00:26]} Bxc5 {[%emt 0:00:14]} 7. b4 {[%emt 0:00:07]} Be7 {[%emt 0:00:53]} 8. Bb2 {[%emt 0:00:10]} O-O {[%emt 0:01:07]} 9. Ngf3 {[%emt 0:00:05]} Nbd7 {[%emt 0:02:04]} 10. c5 {[%emt 0:00:20]} b6 {[%emt 0:03:51]} 11. c6 {[%emt 0:00:30]} Nb8 {[%emt 0:00:06]} 12. Rc1 {[%emt 0:00:33]} Na6 {[%emt 0:03:08]} 13. Bd4 {[%emt 0:06:13]} Ne4 {[%emt 0:04:09]} 14. Ne5 {[%emt 0:01:39]} f6 {[%emt 0:00:54]} 15. Nd7 {[%emt 0:01:23]} Re8 {[%emt 0:03:14]} 16. Qc2 {[%emt 0:01:24]} Nc7 {[%emt 0:01:29]} 17. Nxe4 {[%emt 0:00:32]} dxe4 {[%emt 0:00:19]} 18. Qxe4 {[%emt 0:00:05]} Bxd7 {[%emt 0:02:35]} 19. cxd7 {[%emt 0:00:18]} Qxd7 {[%emt 0:00:23]} 20. Bd3 {[%emt 0:00:45]} f5 {[%emt 0:01:12]} 21. Qf4 {[%emt 0:00:33]} Nd5 {[%emt 0:08:09]} 22. Qg3 {[%emt 0:00:42]} Bf6 {[%emt 0:01:22]} 23. Be5 {[%emt 0:01:31]} Rac8 {[%emt 0:03:54]} 24. O-O {[%emt 0:00:34]} Bxe5 {[%emt 0:02:45]} 25. Qxe5 {[%emt 0:01:08]} Qe7 {[%emt 0:05:29]} 26. Bxf5 {[%emt 0:03:10]} exf5 {[%emt 0:00:43]} 27. Qxd5+ {[%emt 0:06:29]} Qf7 {[%emt 0:00:32]} 28. Qxf7+ {[%emt 0:01:26]} Kxf7 {[%emt 0:00:08]} 29. Rxc8 {[%emt 0:00:07]} Rxc8 {[%emt 0:00:13]} 30. Ra1 {[%emt 0:00:27]} b5 {[%emt 0:00:30]} 31. a4 {[%emt 0:00:14]} bxa4 {[%emt 0:00:13]} 32. h3 {[%emt 0:00:09]} Rc4 {[%emt 0:01:01]} 33. Rxa4 {[%emt 0:00:12]} a5 {[%emt 0:00:14]} 34. Rxa5 {[%emt 0:00:07]} Rxb4 {[%emt 0:00:09]} 35. Rxf5+ {[%emt 0:00:20]} Kg6 {[%emt 0:00:29]} 36. Rd5 {[%emt 0:00:19]} h6 {[%emt 0:00:48]} 37. g4 {[%emt 0:00:12]} Kh7 {[%emt 0:00:31]} 38. Kg2 {[%emt 0:00:25]} Re4 {[%emt 0:00:48]} 39. Rd4 {[%emt 0:00:14]} Re6 {[%emt 0:00:25]} 40. Rd3 {[%emt 0:00:29]} Re5 {[%emt 0:00:28]} 41. f4 {[%emt 0:00:10]} Ra5 {[%emt 0:00:22]} 42. Kf3 {[%emt 0:00:07]} h5 {[%emt 0:00:18]} 43. g5 {[%emt 0:00:25]} Ra6 {[%emt 0:00:34]} 44. f5 {[%emt 0:00:29]} Ra1 {[%emt 0:01:23]} 45. Rd2 {[%emt 0:09:09]} Rh1 {[%emt 0:00:25]} 46. Kg3 {[%emt 0:01:26]} Re1 {[%emt 0:01:44]} 47. Rd3 {[%emt 0:01:37]} Rg1+ {[%emt 0:01:08]} 48. Kh4 {[%emt 0:00:20]} Rf1 {[%emt 0:00:52]} 49. e4 {[%emt 0:00:20]} Rf4+ {[%emt 0:00:38]} 50. Kxh5 {[%emt 0:01:07]} Rxe4 {[%emt 0:00:34]} 51. g6+ {[%emt 0:01:15]} 1-0

[Event "LJ Slovak Open 2022"]
[Site "Liptovsky Jan"]
[Date "2022.06.26"]
[Round "6.51"]
[White "Livnansky, Tomas"]
[Black "Hlavac, Tomas"]
[Result "1-0"]
[ECO "A01"]
[WhiteElo "1244"]
[BlackElo "1409"]
[Annotator "NA RC"]
[PlyCount "134"]
[EventDate "2022.06.23"]
[EventType "swiss"]
[EventCountry "SVK"]
[SourceTitle "playchess.com"]
[Source "ChessBase"]
[SourceQuality "1"]
[TimeControl "3600+30"]

1. b3 {[%emt 0:04:59]} Nf6 {[%emt 0:00:18]} 2. Bb2 {[%emt 0:01:46]} e6 {[%emt 0:00:06]} 3. e3 {[%emt 0:00:54]} Be7 {[%emt 0:00:27]} 4. Nf3 {[%emt 0:00:23]} O-O {[%emt 0:00:10]} 5. Be2 {[%emt 0:01:06]} d6 {[%emt 0:00:41]} 6. O-O {[%emt 0:00:40]} e5 {[%emt 0:00:07]} 7. d3 {[%emt 0:00:47]} b6 {[%emt 0:01:40]} 8. e4 {[%emt 0:02:31]} Nbd7 {[%emt 0:01:50]} 9. c4 {[%emt 0:02:47]} Nc5 {[%emt 0:00:22]} 10. Nbd2 {[%emt 0:01:19]} Ne6 {[%emt 0:00:22]} 11. Qc2 {[%emt 0:03:33]} Nf4 {[%emt 0:00:47]} 12. Rfe1 {[%emt 0:00:37]} Nxe2+ {[%emt 0:01:27]} 13. Rxe2 {[%emt 0:00:11]} Bg4 {[%emt 0:00:37]} 14. h3 {[%emt 0:00:52]} Bh5 {[%emt 0:00:27]} 15. Ree1 {[%emt 0:00:36]} h6 {[%emt 0:00:55]} 16. d4 {[%emt 0:01:03]} exd4 {[%emt 0:01:03]} 17. Bxd4 {[%emt 0:01:26]} c5 {[%emt 0:01:05]} 18. Bb2 {[%emt 0:00:54]} Qd7 {[%emt 0:00:41]} 19. e5 {[%emt 0:00:24]} Nh7 {[%emt 0:04:15]} 20. exd6 {[%emt 0:03:58]} Qxd6 {[%emt 0:02:09]} 21. Ne4 {[%emt 0:02:05]} Qf4 {[%emt 0:03:48]} 22. Qc3 {[%emt 0:05:47]} Bf6 {[%emt 0:03:33]} 23. Nxf6+ {[%emt 0:00:23]} Nxf6 {[%emt 0:00:06]} 24. Re3 {[%emt 0:00:35]} Rae8 {[%emt 0:04:37]} 25. Rae1 {[%emt 0:00:47]} Rxe3 {[%emt 0:00:49]} 26. Rxe3 {[%emt 0:00:13]} Rd8 {[%emt 0:00:41]} 27. g3 {[%emt 0:07:49]} Qd6 {[%emt 0:02:16]} 28. Kg2 {[%emt 0:05:39]} Qc6 {[%emt 0:01:46]} 29. Rd3 {[%emt 0:03:22]} Re8 {[%emt 0:09:05]} 30. Re3 {[%emt 0:02:56]} Rxe3 {[%emt 0:01:49]} 31. Qxe3 {[%emt 0:00:12]} Ne4 {[%emt 0:00:35]} 32. g4 {[%emt 0:01:30]} Bg6 {[%emt 0:00:22]} 33. Ne5 {[%emt 0:00:26]} Qf6 {[%emt 0:02:59]} 34. Nxg6 {[%emt 0:01:08]} Qxg6 {[%emt 0:00:28]} 35. f3 {[%emt 0:00:32]} Ng5 {[%emt 0:01:21]} 36. Kg3 {[%emt 0:01:48]} Qc6 {[%emt 0:02:00]} 37. Qc3 {[%emt 0:01:11]} f6 {[%emt 0:00:16]} 38. Bc1 {[%emt 0:00:28]} Ne6 {[%emt 0:01:01]} 39. Qd3 {[%emt 0:00:51]} Nd4 {[%emt 0:01:54]} 40. Be3 {[%emt 0:00:51]} Qxf3+ {[%emt 0:00:56]} 41. Kh2 {[%emt 0:00:47]} Ne2 {[%emt 0:01:39]} 42. Qd8+ {[%emt 0:01:33]} Kf7 {[%emt 0:02:16]} 43. Qd7+ {[%emt 0:00:31]} Kg6 {[%emt 0:00:11]} 44. Qd3+ {[%emt 0:00:22]} f5 {[%emt 0:00:51]} 45. Qd6+ {[%emt 0:01:07]} Kh7 {[%emt 0:00:22]} 46. Qe5 {[%emt 0:02:05]} fxg4 {[%emt 0:01:22]} 47. hxg4 {[%emt 0:02:13]} Qxg4 {[%emt 0:00:19]} 48. Bxh6 {[%emt 0:02:40]} Kxh6 {[%emt 0:01:30]} 49. Qd6+ {[%emt 0:01:03]} Kg5 {[%emt 0:04:23]} 50. Qe7+ {[%emt 0:00:45]} Kf4 {[%emt 0:00:13]} 51. Qd6+ {[%emt 0:00:25]} Kf3 {[%emt 0:01:10]} 52. Qf8+ {[%emt 0:01:51]} Qf4+ {[%emt 0:00:23]} 53. Qxf4+ {[%emt 0:00:06]} Kxf4 {[%emt 0:00:06]} 54. a3 {[%emt 0:00:12]} g5 {[%emt 0:00:19]} 55. b4 {[%emt 0:00:16]} cxb4 {[%emt 0:00:16]} 56. axb4 {[%emt 0:00:09]} g4 {[%emt 0:00:34]} 57. c5 {[%emt 0:00:08]} bxc5 {[%emt 0:00:14]} 58. b5 {[%emt 0:00:09]} c4 {[%emt 0:00:23]} 59. b6 {[%emt 0:00:14]} axb6 {[%emt 0:00:14]} 60. Kh1 {[%emt 0:00:37]} c3 {[%emt 0:00:06]} 61. Kg2 {[%emt 0:00:16]} c2 {[%emt 0:00:11]} 62. Kf2 {[%emt 0:00:08]} Nd4 {[%emt 0:00:09]} 63. Kg2 {[%emt 0:00:27]} c1=Q {[%emt 0:02:13]} 64. Kf2 {[%emt 0:00:02]} Qd2+ {[%emt 0:00:10]} 65. Kf1 {[%emt 0:01:12]} g3 {[%emt 0:00:19]} 66. Kg1 {[%emt 0:00:14]} Qf2+ {[%emt 0:00:07]} 67. Kh1 {[%emt 0:00:06]} Qh2# {[%emt 0:00:03]} 1-0

[Event "LJ Slovak Open 2022"]
[Site "Liptovsky Jan"]
[Date "2022.06.26"]
[Round "6.52"]
[White "Kovacik, Oliver"]
[Black "Ihnat, Marek"]
[Result "1-0"]
[ECO "B12"]
[WhiteElo "1331"]
[BlackElo "2045"]
[Annotator "NA RC"]
[PlyCount "65"]
[EventDate "2022.06.23"]
[EventType "swiss"]
[EventCountry "SVK"]
[SourceTitle "playchess.com"]
[Source "ChessBase"]
[SourceQuality "1"]
[TimeControl "3600+30"]

1. e4 {[%emt 0:00:05]} c6 {[%emt 0:02:17]} 2. d4 {[%emt 0:00:17]} d5 {[%emt 0:00:21]} 3. e5 {[%emt 0:00:17]} c5 {[%emt 0:00:50]} 4. c3 {[%emt 0:00:21]} Nc6 {[%emt 0:00:19]} 5. f4 {[%emt 0:00:38]} cxd4 {[%emt 0:02:00]} 6. cxd4 {[%emt 0:00:10]} Bf5 {[%emt 0:00:50]} 7. Nf3 {[%emt 0:00:43]} e6 {[%emt 0:01:01]} 8. a3 {[%emt 0:00:58]} Rc8 {[%emt 0:03:44]} 9. Nc3 {[%emt 0:01:16]} Nh6 {[%emt 0:01:56]} 10. h3 {[%emt 0:00:46]} Be7 {[%emt 0:01:01]} 11. Be3 {[%emt 0:00:55]} Bh4+ {[%emt 0:01:06]} 12. Kd2 {[%emt 0:02:06]} a6 {[%emt 0:03:37]} 13. g4 {[%emt 0:01:30]} Be4 {[%emt 0:01:06]} 14. Bd3 {[%emt 0:00:26]} Bxd3 {[%emt 0:00:52]} 15. Kxd3 {[%emt 0:00:19]} Be7 {[%emt 0:00:28]} 16. Rc1 {[%emt 0:01:12]} b5 {[%emt 0:01:16]} 17. b4 {[%emt 0:02:35]} O-O {[%emt 0:00:36]} 18. Ke2 {[%emt 0:00:36]} f6 {[%emt 0:00:32]} 19. exf6 {[%emt 0:01:27]} gxf6 {[%emt 0:01:56]} 20. Rg1 {[%emt 0:01:04]} Kh8 {[%emt 0:01:17]} 21. Qd3 {[%emt 0:00:53]} Rg8 {[%emt 0:00:57]} 22. g5 {[%emt 0:00:34]} Nf5 {[%emt 0:03:08]} 23. h4 {[%emt 0:00:46]} Qe8 {[%emt 0:04:41]} 24. Nxd5 {[%emt 0:03:11]} Nxe3 {[%emt 0:02:04]} 25. Nxe3 {[%emt 0:00:23]} Bd6 {[%emt 0:04:24]} 26. f5 {[%emt 0:01:38]} Rd8 {[%emt 0:05:11]} 27. Kf2 {[%emt 0:02:22]} e5 {[%emt 0:01:24]} 28. Nd2 {[%emt 0:02:06]} Nxd4 {[%emt 0:04:26]} 29. gxf6 {[%emt 0:00:55]} Rxg1 {[%emt 0:02:40]} 30. Rxg1 {[%emt 0:00:20]} e4 {[%emt 0:00:50]} 31. Nxe4 {[%emt 0:00:55]} Qe5 {[%emt 0:05:50]} 32. Ng5 {[%emt 0:06:30]} Qxf6 {[%emt 0:01:45]} 33. Nf7+ {[%emt 0:00:53]} 1-0

[Event "LJ Slovak Open 2022"]
[Site "Liptovsky Jan"]
[Date "2022.06.26"]
[Round "6.53"]
[White "Muller, Tomas"]
[Black "Bodnar, Frantisek"]
[Result "1-0"]
[ECO "A22"]
[WhiteElo "1240"]
[BlackElo "1379"]
[Annotator "NA RC"]
[PlyCount "97"]
[EventDate "2022.06.23"]
[EventType "swiss"]
[EventCountry "SVK"]
[SourceTitle "playchess.com"]
[Source "ChessBase"]
[SourceQuality "1"]
[TimeControl "3600+30"]

1. c4 {[%emt 0:00:06]} e5 {[%emt 0:00:32]} 2. g3 {[%emt 0:00:47]} Bc5 {[%emt 0:00:22]} 3. Nc3 {[%emt 0:00:30]} Nf6 {[%emt 0:00:23]} 4. Bg2 {[%emt 0:00:48]} a6 {[%emt 0:02:31]} 5. e3 {[%emt 0:01:22]} O-O {[%emt 0:02:15]} 6. Nge2 {[%emt 0:00:35]} Re8 {[%emt 0:00:45]} 7. O-O {[%emt 0:02:08]} c6 {[%emt 0:00:26]} 8. b3 {[%emt 0:02:20]} d5 {[%emt 0:02:04]} 9. d4 {[%emt 0:04:33]} exd4 {[%emt 0:02:02]} 10. Nxd4 {[%emt 0:01:53]} dxc4 {[%emt 0:01:19]} 11. bxc4 {[%emt 0:01:58]} Bg4 {[%emt 0:03:22]} 12. Qd2 {[%emt 0:02:12]} Nbd7 {[%emt 0:00:41]} 13. Nb3 {[%emt 0:01:29]} Ba7 {[%emt 0:01:49]} 14. h3 {[%emt 0:04:04]} Bh5 {[%emt 0:00:03]} 15. Bb2 {[%emt 0:02:43]} Re7 {[%emt 0:00:33]} 16. Qd3 {[%emt 0:02:22]} Bg6 {[%emt 0:00:42]} 17. Qd2 {[%emt 0:01:31]} Qe8 {[%emt 0:00:09]} 18. Rfd1 {[%emt 0:02:19]} Rxe3 {[%emt 0:02:28]} 19. Re1 {[%emt 0:02:14]} Rxe1+ {[%emt 0:01:46]} 20. Rxe1 {[%emt 0:00:12]} Qf8 {[%emt 0:00:08]} 21. Rd1 {[%emt 0:07:01]} Re8 {[%emt 0:05:46]} 22. Kf1 {[%emt 0:01:29]} Nc5 {[%emt 0:00:52]} 23. Qd6 {[%emt 0:03:00]} Nfe4 {[%emt 0:02:42]} 24. Qxf8+ {[%emt 0:00:59]} Kxf8 {[%emt 0:00:02]} 25. Nxe4 {[%emt 0:01:25]} Bxe4 {[%emt 0:00:21]} 26. Ba3 {[%emt 0:01:57]} Bxg2+ {[%emt 0:03:40]} 27. Kxg2 {[%emt 0:01:05]} b6 {[%emt 0:00:46]} 28. Bxc5+ {[%emt 0:01:21]} bxc5 {[%emt 0:00:14]} 29. Rd7 {[%emt 0:01:23]} Bb8 {[%emt 0:01:18]} 30. Nxc5 {[%emt 0:02:07]} Be5 {[%emt 0:00:24]} 31. Nxa6 {[%emt 0:00:52]} Ra8 {[%emt 0:00:16]} 32. Nb4 {[%emt 0:00:54]} c5 {[%emt 0:00:12]} 33. Nc6 {[%emt 0:00:15]} Bd4 {[%emt 0:01:08]} 34. Nxd4 {[%emt 0:00:43]} cxd4 {[%emt 0:00:02]} 35. Rxd4 {[%emt 0:00:12]} Rxa2 {[%emt 0:00:16]} 36. Kf3 {[%emt 0:00:12]} Ke7 {[%emt 0:00:01]} 37. Ke3 {[%emt 0:00:52]} Ke6 {[%emt 0:00:11]} 38. f4 {[%emt 0:00:13]} f5 {[%emt 0:00:13]} 39. Rd5 {[%emt 0:00:51]} Ra3+ {[%emt 0:00:08]} 40. Rd3 {[%emt 0:00:38]} Ra5 {[%emt 0:00:14]} 41. Kd4 {[%emt 0:00:41]} h6 {[%emt 0:00:15]} 42. Re3+ {[%emt 0:00:11]} Kf6 {[%emt 0:00:46]} 43. c5 {[%emt 0:00:35]} g5 {[%emt 0:00:19]} 44. Kd5 {[%emt 0:00:24]} gxf4 {[%emt 0:00:40]} 45. gxf4 {[%emt 0:00:16]} Ra8 {[%emt 0:00:07]} 46. Re6+ {[%emt 0:00:16]} Kf7 {[%emt 0:00:14]} 47. Re5 {[%emt 0:01:49]} Rd8+ {[%emt 0:00:29]} 48. Kc4 {[%emt 0:00:13]} Rc8 {[%emt 0:00:13]} 49. Rxf5+ {[%emt 0:00:48]} 1-0